bitfinex-derivatives/quotes_ETHF0:USTF0_20250528
["timestamp","ask_amount","ask_price","bid_price","bid_amount"]
[1748441223691,8.2078,2648.3,2647.5,3.2078]
[1748441223989,8.2078,2648.3,2646.0,9.968]
[1748441223990,1.88752,2647.8,2647.2,3.2078]
[1748441224181,3.2078,2647.6,2647.1,6.2288]
[1748441224383,0.75512,2647.4,2647.1,6.98399]
[1748441224581,1.2712,2647.3,2647.1,0.75516]
[1748441224889,0.00566219,2647.5,2647.4,0.7551]
[1748441225490,0.00566219,2647.5,2647.4,3.9629]
[1748441225681,1.1566,2648.4,2648.2,0.75487]
[1748441225880,1.3259,2648.3,2647.9,4.937]
[1748441226287,1.3259,2648.3,2648.2,0.75487]
[1748441226487,3.2078,2648.8,2648.0,4.438]
[1748441226682,0.00566219,2648.7,2648.4,0.75479]
[1748441226883,0.00566219,2648.7,2648.5,1.2302]
[1748441227084,1.33156219,2648.7,2648.5,1.2302]
[1748441227292,1.33156219,2648.7,2648.6,0.75476]
[1748441227479,1.33156219,2648.7,2648.5,1.2302]
[1748441227680,1.33156219,2648.7,2648.3,3.2078]
[1748441227983,0.75487,2648.2,2648.1,0.00566219]
[1748441228186,1.88691,2648.6,2648.1,0.00566219]
[1748441228187,0.75487,2648.3,2648.1,0.00566219]
[1748441228485,3.96267,2648.2,2648.1,0.00566219]
[1748441228688,6.32667,2648.2,2648.1,0.00566219]
[1748441228886,5.5718,2648.2,2648.1,0.00566219]
[1748441229088,8.11887,2648.2,2648.1,0.00566219]
[1748441229586,0.75513,2647.3,2647.2,4.4823]
[1748441229793,3.2078,2647.5,2646.8,8.1448]
[1748441229989,2.00185,2647.6,2647.4,0.75508]
[1748441230185,0.75512,2647.4,2647.1,2.02967]
[1748441230387,1.2468,2647.3,2647.2,0.75514]
[1748441230789,3.2078,2647.8,2647.1,6.37024]
[1748441230986,1.3432,2647.7,2647.1,4.4823]
[1748441231493,5.517,2648.2,2648.0,0.75492]
[1748441231686,5.517,2648.2,2647.4,3.2078]
[1748441231687,1.3432,2648.1,2647.7,4.937]
[1748441231886,0.75495,2648.0,2647.7,0.75501]
[1748441232091,1.3432,2647.9,2647.6,4.937]
[1748441232293,1.3432,2647.9,2647.5,1.2507]
[1748441232485,0.75503,2647.7,2647.4,4.938]
[1748441232693,0.75508,2647.5,2647.3,4.938]
[1748441232888,1.3432,2647.4,2647.3,5.69313]
[1748441233486,1.3432,2647.4,2647.3,4.938]
[1748441233693,0.75514,2647.3,2647.0,8.15146219]
[1748441233995,1.3432,2647.2,2647.1,0.75519]
[1748441234387,1.3432,2647.2,2647.0,8.90666219]
[1748441234700,2.09838,2647.2,2647.0,4.94366219]
[1748441234898,0.75519,2647.1,2647.0,4.94366219]
[1748441235190,2.06919,2647.1,2647.0,0.00566219]
[1748441235588,1.88818,2646.9,2646.3,4.938]
[1748441235796,0.75535,2646.6,2646.4,0.75538]
[1748441235999,0.75535,2646.6,2646.3,4.938]
[1748441236000,1.314,2646.5,2646.3,4.938]
[1748441236294,1.314,2646.5,2645.7,1.88895]
[1748441236295,5.0963,2646.4,2645.7,3.96337]
[1748441236498,5.0963,2646.4,2645.5,1.203]
[1748441236499,1.314,2646.3,2645.4,3.2078]
[1748441236695,0.75569,2645.4,2645.1,0.75575]
[1748441236997,4.5218,2645.3,2645.0,4.938]
[1748441237200,5.27751,2645.3,2645.0,5.69378]
[1748441237392,5.27751,2645.3,2645.0,4.938]
[1748441237393,4.5218,2645.3,2645.0,4.938]
[1748441237597,0.75574,2645.2,2645.0,4.938]
[1748441237795,1.3445,2645.1,2644.2,2.26703333]
[1748441238100,1.3445,2645.1,2644.3,6.2137]
[1748441238298,1.3445,2645.1,2645.0,0.75579]
[1748441238500,0.7558,2645.0,2644.6,3.2078]
[1748441238695,1.3445,2644.9,2644.7,0.75586]
[1748441238995,1.3445,2644.9,2644.6,2.03159]
[1748441239195,1.3445,2644.9,2644.7,0.75587]
[1748441239392,1.3445,2644.9,2644.6,2.03158]
[1748441239591,4.5523,2644.9,2644.8,0.75584]
[1748441239793,4.4316,2645.4,2645.2,0.75571]
[1748441239991,4.4316,2645.4,2644.7,1.2757]
[1748441239992,4.4668,2645.4,2644.8,8.1468]
[1748441240196,4.4668,2645.4,2645.2,0.75572]
[1748441240397,4.4668,2645.4,2645.0,0.75577]
[1748441240599,4.4668,2645.4,2644.8,3.2078]
[1748441240795,4.4668,2645.4,2645.2,0.75572]
[1748441240998,4.4668,2645.4,2645.1,0.75574]
[1748441241304,4.4668,2645.4,2645.2,0.75573]
[1748441241497,4.4668,2645.4,2645.3,0.7557]
[1748441242300,4.4668,2645.4,2644.9,1.2266]
[1748441242301,3.2078,2645.8,2645.6,0.7556]
[1748441242700,3.2078,2645.8,2645.2,1.2266]
[1748441242901,3.2078,2645.8,2645.6,0.7556]
[1748441243397,3.2078,2645.8,2645.7,0.75559]
[1748441243598,0.00566219,2646.1,2646.0,0.7555]
[1748441244298,0.00566219,2646.1,2646.0,3.9633]
[1748441244497,3.2078,2646.7,2646.6,0.75533]
[1748441244696,4.3859,2647.0,2646.8,0.75526]
[1748441244897,4.3859,2647.0,2646.4,1.88844]
[1748441245098,1.3497,2646.9,2646.3,9.4668]
[1748441245296,1.3497,2646.9,2646.3,11.35531]
[1748441245498,0.00566219,2646.9,2646.7,0.75529]
[1748441245802,0.00566219,2646.9,2646.8,1.318]
[1748441246201,0.00566219,2646.9,2646.8,2.07327]
[1748441246402,0.00566219,2646.9,2646.8,1.318]
[1748441246804,0.00566219,2646.9,2646.8,2.07327]
[1748441247908,3.96286,2647.6,2647.2,0.75515]
[1748441248104,0.75517,2647.2,2646.8,3.8897]
[1748441248303,3.2078,2647.3,2647.1,0.75518]
[1748441248699,4.5649,2647.3,2647.1,0.75518]
[1748441248900,0.00566219,2647.5,2647.0,4.935]
[1748441249101,0.00566219,2647.5,2647.0,6.1859]
[1748441249402,0.75519,2647.1,2647.0,1.2509]
[1748441250401,2.02647,2647.2,2647.0,1.2509]
[1748441250704,0.75519,2647.1,2647.0,1.2509]
[1748441250904,1.2713,2647.1,2647.0,1.2509]
[1748441251104,3.2078,2647.3,2646.8,2.5717]
[1748441251306,3.2078,2647.3,2646.9,1.2509]
[1748441251505,1.2713,2647.2,2646.9,1.2509]
[1748441251705,0.75521,2647.1,2646.9,1.2509]
[1748441251903,3.2078,2647.3,2647.2,0.75516]
[1748441252101,3.2078,2647.3,2647.1,0.75517]
[1748441252302,3.96293,2647.3,2647.2,1.326]
[1748441252902,3.2078,2647.3,2647.2,1.326]
[1748441253396,3.96293,2647.3,2647.2,1.326]
[1748441253995,1.2808,2647.4,2647.3,0.75513]
[1748441254204,0.00566219,2647.5,2647.4,0.7551]
[1748441254604,5.00566219,2647.5,2646.8,2.5717]
[1748441254809,0.75523,2647.0,2646.8,3.32697]
[1748441255211,2.05713,2647.0,2646.8,3.32697]
[1748441255603,0.75524,2646.9,2646.8,2.5717]
[1748441255809,2.05714,2646.9,2646.8,2.5717]
[1748441256006,0.75539,2646.4,2646.3,0.00566219]
[1748441256210,1.88876,2646.0,2645.4,1.1823]
[1748441256511,3.2078,2645.6,2645.4,1.2512]
[1748441256712,1.3019,2645.5,2645.4,2.00687]
[1748441256906,0.75567,2645.4,2644.9,8.1418]
[1748441257112,0.75576,2645.1,2645.0,1.2512]
[1748441257311,0.75579,2645.0,2644.9,0.00566219]
[1748441257514,7.05769,2645.0,2644.9,0.00566219]
[1748441257810,6.3019,2645.0,2644.2,0.3776]
[1748441258009,3.2078,2644.7,2644.2,0.3776]
[1748441258208,1.2295,2644.6,2644.2,0.3776]
[1748441258707,3.2078,2644.4,2643.2,3.2078]
[1748441259012,3.2078,2644.4,2642.5,1.89121]
[1748441259013,0.75651,2642.5,2642.1,3.2078]
[1748441259209,1.2295,2642.4,2642.1,3.2078]
[1748441259404,0.1135,2642.3,2642.1,3.2078]
[1748441259707,3.2078,2642.2,2641.5,1.2758]
[1748441259914,1.2295,2642.2,2641.5,1.2758]
[1748441260208,0.1135,2642.3,2641.6,4.935]
[1748441260406,0.1135,2642.3,2642.2,0.75659]
[1748441261204,0.1135,2642.3,2642.1,1.2758]
[1748441261413,0.1135,2642.3,2642.2,0.75659]
[1748441261809,0.75619,2643.6,2642.3,1.89138]
[1748441262001,0.7562,2643.6,2642.9,3.2078]
[1748441262206,2.05382,2643.5,2642.9,3.96417]
[1748441262509,2.05383,2643.5,2643.0,1.2271]
[1748441262699,3.2078,2643.8,2643.2,3.2078]
[1748441262903,0.00567301,2643.8,2643.4,0.75622]
[1748441263109,0.00567301,2643.8,2643.2,3.21347301]
[1748441263110,0.76180301,2643.8,2643.5,1.2271]
[1748441263407,0.00567301,2643.8,2643.5,1.2271]
[1748441263607,0.00567301,2643.8,2643.6,0.75617]
[1748441263816,0.00567301,2643.8,2643.7,1.98326]
[1748441264515,0.00567301,2643.8,2643.2,0.00567301]
[1748441264705,3.2078,2643.7,2643.3,1.3577]
[1748441264903,0.00567301,2643.8,2643.3,1.3577]
[1748441265218,0.75618,2643.7,2643.3,1.3577]
[1748441265513,0.00567301,2643.8,2643.3,1.3577]
[1748441265714,1.27097301,2643.8,2643.3,1.3577]
[1748441266009,2.02711301,2643.8,2643.3,1.3577]
[1748441266210,1.27097301,2643.8,2643.3,1.3577]
[1748441266413,2.02711301,2643.8,2643.3,1.3577]
[1748441266709,3.2078,2643.6,2643.2,0.00567301]
[1748441266915,1.2653,2643.5,2643.2,0.00567301]
[1748441267213,0.75627,2643.3,2643.2,0.00567301]
[1748441267814,8.2078,2643.3,2642.5,1.2928]
[1748441268011,3.2078,2643.0,2642.4,3.2078]
[1748441268314,8.1468,2643.1,2642.4,3.2078]
[1748441268509,3.2078,2642.7,2642.0,4.5006]
[1748441268714,3.2078,2642.1,2641.1,3.2078]
[1748441269013,3.2078,2641.2,2640.2,3.2078]
[1748441269308,1.3231,2641.1,2641.0,0.75693]
[1748441269515,0.75672,2641.8,2640.7,4.939]
[1748441269713,1.3231,2641.7,2641.4,0.75679]
[1748441269908,1.4366,2641.7,2641.3,0.75683]
[1748441270105,1.4366,2641.7,2641.1,3.2078]
[1748441270306,3.2078,2641.5,2640.9,3.2078]
[1748441270512,0.1135,2641.7,2641.5,0.75678]
[1748441270712,0.1135,2641.7,2641.2,4.939]
[1748441270914,3.2078,2642.8,2641.6,3.2078]
[1748441271106,1.2556,2642.9,2642.4,3.2078]
[1748441271411,3.2078,2643.1,2642.6,0.75645]
[1748441271616,3.2078,2643.5,2643.1,0.75631]
[1748441271913,0.00567301,2643.6,2643.2,1.3405]
[1748441272410,0.00567301,2643.6,2643.5,0.75622]
[1748441272913,3.2078,2644.2,2643.4,3.2078]
[1748441273104,1.2556,2644.1,2644.0,0.75607]
[1748441273304,4.2991,2644.8,2644.0,3.2078]
[1748441273511,1.3029,2644.7,2644.4,0.75594]
[1748441273710,1.3029,2644.7,2644.1,1.3134]
[1748441273711,3.2078,2644.8,2644.5,1.3134]
[1748441274015,3.2078,2644.8,2644.7,0.75587]
[1748441274406,3.2078,2644.8,2644.6,0.75589]
[1748441274609,3.2078,2644.8,2644.7,1.3134]
[1748441274913,3.2078,2644.8,2644.7,1.20037]
[1748441275114,3.2078,2644.8,2644.7,1.95624]
[1748441275316,0.00567301,2644.9,2644.7,1.95624]
[1748441275317,0.00567301,2644.9,2644.8,0.75584]
[1748441275619,0.00567301,2644.9,2644.8,10.69584]
[1748441275816,0.00567301,2644.9,2644.8,5.81984]
[1748441276011,0.00567301,2644.9,2644.4,3.21347301]
[1748441276209,0.00567301,2644.9,2644.5,5.064]
[1748441276411,0.00567301,2644.9,2644.5,5.81991]
[1748441276605,1.31617301,2644.9,2644.5,5.064]
[1748441276806,1.31617301,2644.9,2644.5,5.81992]
[1748441277022,1.31617301,2644.9,2644.5,5.064]
[1748441277314,0.00567301,2644.9,2644.8,0.75584]
[1748441277516,0.00567301,2644.9,2644.5,5.064]
[1748441277712,0.75587,2644.8,2644.4,3.21347301]
[1748441277913,0.75593,2644.5,2644.4,0.00567301]
[1748441278416,5.75593,2644.5,2644.4,0.00567301]
[1748441278722,4.5183,2644.7,2644.4,0.00567301]
[1748441279024,11.408,2644.7,2643.5,3.2078]
[1748441279207,3.96388,2644.0,2643.6,1.3169]
[1748441279408,2.0972,2643.9,2643.5,3.2078]
[1748441279609,1.3411,2643.9,2643.6,2.02558]
[1748441279914,1.3411,2643.9,2643.7,1.2694]
[1748441280114,1.3411,2643.9,2642.4,3.2078]
[1748441280313,1.3411,2643.9,2641.9,5.063]
[1748441280314,1.3411,2643.9,2643.6,0.75619]
[1748441280514,1.3411,2643.9,2643.7,1.2694]
[1748441280709,3.2078,2644.3,2643.7,1.2694]
[1748441280917,5.3049,2644.3,2643.9,0.75608]
[1748441281209,5.3049,2644.3,2643.7,1.2694]
[1748441281210,4.5489,2644.3,2644.1,0.75602]
[1748441281410,0.00567301,2644.4,2644.3,0.75599]
[1748441282013,3.2078,2644.9,2644.3,6.2694]
[1748441282218,3.2078,2644.9,2644.6,0.75589]
[1748441282418,0.75584,2644.8,2644.7,6.3802]
[1748441282726,0.75584,2644.8,2644.3,1.1134]
[1748441282727,0.75584,2644.8,2644.4,0.75595]
[1748441283016,4.4912,2644.9,2644.4,0.75595]
[1748441283017,1.2834,2644.7,2644.5,0.75592]
[1748441283225,3.21347301,2644.9,2644.7,0.75586]
[1748441283426,3.21347301,2644.9,2644.8,1.3172]
[1748441283615,3.21347301,2644.9,2644.8,2.07304]
[1748441283818,3.21347301,2644.9,2644.3,3.00900301]
[1748441283819,0.75596,2644.4,2644.3,0.00567301]
[1748441284017,1.88999,2644.3,2643.4,5.063]
[1748441284218,3.96395,2643.8,2643.6,1.3172]
[1748441284416,3.2078,2643.8,2643.6,1.3172]
[1748441285120,3.2078,2643.8,2643.2,3.2078]
[1748441285121,0.75623,2643.5,2643.3,5.063]
[1748441285324,1.2834,2643.7,2643.3,1.3172]
[1748441285621,1.3151,2643.4,2642.9,1.174]
[1748441285820,3.2078,2643.2,2642.6,6.2954]
[1748441286030,3.2078,2643.2,2643.1,0.75633]
[1748441286331,0.00567301,2643.4,2643.3,0.75627]
[1748441286526,3.2078,2644.1,2644.0,0.75607]
[1748441286827,3.2078,2644.6,2644.5,0.75593]
[1748441287025,3.2078,2644.9,2644.7,0.75585]
[1748441287217,3.2078,2644.9,2644.8,1.98824]
[1748441287624,0.00567301,2645.1,2645.0,0.75577]
[1748441287827,3.2078,2645.6,2645.0,5.063]
[1748441288126,3.2078,2645.6,2645.5,0.75564]
[1748441288329,3.2078,2646.0,2645.9,0.75553]
[1748441288524,3.2078,2646.0,2645.6,1.2732]
[1748441288730,3.96339,2645.7,2645.6,1.2732]
[1748441288929,3.96339,2645.7,2645.4,0.00567301]
[1748441289120,2.03932,2645.6,2645.4,0.00567301]
[1748441289316,1.2837,2645.6,2645.4,0.00567301]
[1748441289524,0.76121301,2645.9,2645.4,0.00567301]
[1748441289720,0.00567301,2645.9,2645.4,5.06767301]
[1748441289921,1.2837,2645.8,2645.7,0.75559]
[1748441290123,0.00567301,2645.9,2645.8,0.75556]
[1748441290928,0.00567301,2645.9,2645.8,3.96336]
[1748441291129,0.00567301,2645.9,2645.8,8.96336]
[1748441291422,0.00567301,2645.9,2645.8,3.96336]
[1748441291622,0.00567301,2645.9,2645.8,0.75556]
[1748441291823,0.00567301,2645.9,2645.8,20.38156]
[1748441292726,0.00567301,2645.9,2645.8,25.38156]
[1748441292934,3.2078,2646.4,2645.8,23.58934]
[1748441293231,3.2078,2646.2,2645.6,1.2732]
[1748441293426,3.2078,2645.9,2645.7,5.061]
[1748441293631,3.2078,2645.9,2645.8,1.245]
[1748441294330,3.2078,2645.9,2645.8,7.06156]
[1748441294526,0.00567301,2646.1,2645.8,6.306]
[1748441294731,0.00567301,2646.1,2646.0,0.7555]
[1748441295531,0.00567301,2646.1,2646.0,5.7555]
[1748441295733,3.2078,2646.8,2646.1,1.88866]
[1748441296029,3.2078,2646.8,2646.6,0.75532]
[1748441296222,3.2078,2646.8,2646.7,0.7553]
[1748441296427,3.2078,2646.8,2646.6,0.75531]
[1748441296631,3.2078,2646.8,2646.6,1.2336]
[1748441297136,3.2078,2646.8,2645.6,39.98799]
[1748441297137,1.3375,2646.7,2645.6,39.98799]
[1748441297327,3.2078,2646.1,2645.7,6.2936]
[1748441297531,3.2078,2646.1,2645.9,0.75553]
[1748441297727,3.2078,2646.1,2645.8,1.2336]
[1748441297927,5.27678,2646.1,2645.8,1.98913]
[1748441298440,4.5213,2646.1,2645.6,43.159]
[1748441298927,0.75559,2645.7,2645.4,5.06567301]
[1748441299130,1.3135,2645.6,2645.4,5.06567301]
[1748441299335,3.2078,2646.1,2646.0,0.7555]
[1748441299531,0.7555,2646.0,2645.9,5.06]
[1748441299727,0.1131,2646.2,2646.0,0.75548]
[1748441299928,0.1131,2646.2,2646.1,2.04147]
[1748441300123,0.86854,2646.2,2646.1,1.286]
[1748441300325,0.75556,2645.8,2645.7,5.06]
[1748441300536,3.96337,2645.8,2645.5,5.81562]
[1748441300729,2.01529,2645.7,2645.5,5.06]
[1748441300928,2.01531,2645.7,2645.5,5.06]
[1748441301429,3.2078,2645.8,2645.5,5.06]
[1748441301635,3.2078,2645.8,2645.7,0.75559]
[1748441301833,1.2597,2646.1,2645.7,0.75559]
[1748441302038,0.1131,2646.2,2646.1,0.75547]
[1748441302636,0.1131,2646.2,2646.1,2.09907]
[1748441303238,3.2078,2646.6,2646.5,0.75536]
[1748441303431,0.00567301,2647.0,2646.9,0.75524]
[1748441303432,4.47317301,2647.0,2646.9,0.75524]
[1748441304734,3.21347301,2647.0,2646.9,0.75524]
[1748441305135,3.21347301,2647.0,2646.7,1.286]
[1748441305339,1.2273,2646.9,2646.8,0.75527]
[1748441305541,1.98255,2646.9,2646.7,2.04129]
[1748441305839,0.75527,2646.8,2646.7,1.286]
[1748441306040,1.2273,2646.8,2646.7,2.0413]
[1748441306236,3.21347301,2647.0,2646.8,0.75525]
[1748441306443,3.21347301,2647.0,2646.9,2.04124]
[1748441306638,3.21347301,2647.0,2646.8,0.75526]
[1748441306940,1.3354,2646.9,2646.8,0.75526]
[1748441307143,1.3354,2646.9,2646.7,0.75529]
[1748441307443,1.3354,2646.9,2646.8,0.75527]
[1748441307739,1.3354,2646.9,2646.7,0.75528]
[1748441307939,1.3354,2646.9,2646.8,0.75527]
[1748441308336,3.21347301,2647.0,2646.9,0.75524]
[1748441308545,0.00567301,2647.0,2646.9,0.75524]
[1748441309739,3.2078,2647.4,2647.3,0.75513]
[1748441310039,1.3354,2647.6,2647.5,0.75507]
[1748441310439,3.2078,2647.7,2647.6,0.75504]
[1748441312538,3.96283,2647.7,2647.5,0.75506]
[1748441312733,1.2572,2647.6,2647.5,0.75507]
[1748441313037,3.2078,2647.7,2647.5,0.75507]
[1748441313038,3.2078,2647.7,2647.6,0.75504]
[1748441313238,3.2078,2647.7,2647.6,5.78104]
[1748441313442,0.00567301,2647.9,2647.8,0.75499]
[1748441314347,0.00567301,2647.9,2647.8,20.12499]
[1748441314738,3.2078,2648.3,2648.2,0.75487]
[1748441314941,3.2078,2648.3,2648.2,5.78087]
[1748441315142,3.2078,2648.3,2648.2,25.16487]
[1748441315342,3.2078,2648.3,2648.2,25.16287]
[1748441315542,3.2078,2648.3,2648.2,25.15787]
[1748441315945,0.75482,2648.4,2648.1,0.75488]
[1748441316143,1.2878,2648.2,2648.1,20.12288]
[1748441316444,0.75852431,2648.5,2648.2,0.75487]
[1748441316643,3.96265,2648.3,2648.2,5.025]
[1748441316839,3.96265,2648.3,2648.1,5.7799]
[1748441317036,1.2878,2648.2,2648.1,5.7799]
[1748441317447,3.2078,2648.3,2648.2,0.75487]
[1748441317844,0.00372431,2648.5,2648.4,0.75482]
[1748441318442,0.00372431,2648.5,2648.1,5.025]
[1748441318746,0.00372431,2648.5,2648.4,0.75482]
[1748441318952,1.27992431,2648.5,2648.0,5.025]
[1748441319240,3.2078,2648.2,2647.4,1.89340301]
[1748441319440,1.2762,2648.1,2647.6,1.88762]
[1748441319648,2.0311,2648.1,2647.9,0.75495]
[1748441319843,2.0311,2648.1,2648.0,0.75493]
[1748441319844,1.2762,2648.1,2648.0,0.75493]
[1748441320039,0.755,2647.8,2647.4,0.00567301]
[1748441320347,3.2078,2648.2,2647.9,0.75496]
[1748441320348,3.2078,2648.0,2647.9,0.75496]
[1748441321051,3.21152431,2648.5,2648.4,0.75482]
[1748441321248,3.21152431,2648.5,2647.9,1.88735]
[1748441321452,3.2078,2648.2,2648.1,5.7789]
[1748441321848,3.2078,2648.2,2648.1,0.7549]
[1748441322051,3.2078,2648.2,2647.7,1.88754]
[1748441322052,0.75499,2647.8,2647.6,0.75503]
[1748441322247,0.75507,2647.5,2647.1,3.96296]
[1748441322452,0.75507,2647.5,2647.2,0.75515]
[1748441322648,5.6627,2647.7,2647.1,3.2078]
[1748441322953,40.8,2647.6,2647.1,8.2318]
[1748441323150,1.2546,2647.5,2647.4,0.76075301]
[1748441323347,40.8,2647.6,2647.5,0.75507]
[1748441323551,3.2078,2648.0,2647.4,1.89336301]
[1748441323753,1.2546,2647.9,2647.8,0.75498]
[1748441324157,42.0546,2647.9,2647.4,0.00567301]
[1748441324357,3.2078,2647.7,2647.5,0.75507]
[1748441324559,3.2078,2647.7,2647.6,5.024]
[1748441324859,3.2078,2647.7,2647.5,0.75506]
[1748441325059,3.2078,2647.7,2647.4,0.00567301]
[1748441325258,3.2078,2647.7,2647.5,0.75506]
[1748441325461,0.75506,2647.6,2647.4,0.00567301]
[1748441325762,3.2078,2647.7,2647.6,0.75504]
[1748441326951,40.8,2647.9,2647.8,0.75499]
[1748441327259,3.2078,2648.1,2647.8,5.024]
[1748441327453,3.2078,2648.1,2648.0,0.75493]
[1748441327659,49.0078,2648.1,2647.4,0.00567301]
[1748441327865,3.2078,2647.5,2647.4,0.76076301]
[1748441328758,3.2078,2647.5,2647.4,0.00567301]
[1748441328957,3.96287,2647.5,2647.4,0.00567301]
[1748441329161,3.2078,2647.5,2647.4,0.76077301]
[1748441329458,40.8,2648.1,2647.7,0.755]
[1748441329459,44.0078,2648.1,2647.7,0.755]
[1748441329657,3.2078,2648.1,2648.0,0.75493]
[1748441331458,3.2078,2648.1,2647.8,25.08998]
[1748441331663,3.2078,2648.1,2647.9,0.75495]
[1748441331864,3.2078,2648.1,2647.8,24.335]
[1748441332067,3.96271,2648.1,2647.9,0.75494]
[1748441332264,0.75493,2648.0,2647.8,25.08997]
[1748441332465,3.2078,2648.1,2648.0,0.75493]
[1748441332661,41.9779,2648.4,2648.3,0.75485]
[1748441332867,3.21152431,2648.5,2648.4,0.75482]
[1748441333055,3.96632431,2648.5,2648.1,1.2699]
[1748441333254,44.01152431,2648.5,2648.4,0.75482]
[1748441333662,3.21152431,2648.5,2648.4,0.75482]
[1748441334163,0.00372431,2648.5,2648.4,0.75482]
[1748441334370,0.00372431,2648.5,2648.4,2.01772]
[1748441336667,3.21152431,2648.5,2648.3,25.08784]
[1748441336867,3.21152431,2648.5,2648.4,0.75482]
[1748441337768,3.21152431,2648.5,2648.4,2.01752]
[1748441338164,3.21152431,2648.5,2648.0,1.88732]
[1748441338361,3.21152431,2648.5,2648.3,0.75482]
[1748441338565,3.21152431,2648.5,2648.4,0.75482]
[1748441339064,3.21152431,2648.5,2648.2,19.307]
[1748441339281,3.21152431,2648.5,2648.4,0.75482]
[1748441339670,3.21152431,2648.5,2648.2,19.307]
[1748441339871,5.09854431,2648.5,2647.7,4.936]
[1748441340072,5.09854431,2648.5,2647.9,19.307]
[1748441340073,0.75486,2648.3,2647.9,19.307]
[1748441340274,3.2078,2648.0,2647.9,20.06196]
[1748441342066,3.2078,2648.0,2647.7,4.936]
[1748441342267,0.75507,2647.5,2647.4,0.00567301]
[1748441342466,3.96287,2647.5,2647.4,0.00567301]
[1748441342672,3.2078,2647.5,2647.4,0.00567301]
[1748441342870,44.0078,2647.5,2647.4,0.76077301]
[1748441343276,46.02397,2647.5,2647.4,0.00567301]
[1748441344275,45.2689,2647.5,2647.4,0.76077301]
[1748441344475,3.2078,2647.5,2647.4,0.76077301]
[1748441345071,3.2078,2647.5,2647.4,0.00567301]
[1748441345268,8.96287,2647.5,2647.4,0.00567301]
[1748441345670,11.98323,2647.5,2646.4,1.30748732]
[1748441345873,3.2078,2647.1,2646.4,3.19596732]
[1748441346076,3.2078,2647.1,2646.8,1.88819]
[1748441346279,0.113,2647.0,2646.9,21.32934]
[1748441347473,0.00567301,2647.2,2647.1,0.75519]
[1748441347872,0.00567301,2647.2,2647.1,2.06267732]
[1748441348072,0.00567301,2647.2,2647.1,5.69219]
[1748441348879,0.00567301,2647.2,2647.1,8.89999]
[1748441349579,3.2078,2648.0,2647.9,0.75496]
[1748441349973,3.2078,2648.0,2647.7,2.61513486]
[1748441350179,3.2078,2648.0,2647.7,1.31113486]
[1748441350180,0.75499,2647.8,2647.7,1.31113486]
[1748441350579,6.77209,2647.8,2647.7,1.31113486]
[1748441350883,3.21152431,2648.0,2647.9,0.75496]
[1748441351778,3.21152431,2648.0,2647.9,2.05896]
[1748441352078,0.00372431,2648.0,2647.9,2.05896]
[1748441352278,3.2078,2648.6,2648.5,0.75479]
[1748441352578,3.2078,2648.6,2648.2,4.937]
[1748441352878,3.2078,2648.3,2648.2,5.69187]
[1748441353189,1.3347,2648.5,2648.4,0.75482]
[1748441353770,0.75485,2648.3,2648.2,0.00567301]
[1748441353971,0.75485,2648.3,2648.0,1.31113486]
[1748441353972,0.7549,2648.1,2648.0,1.31113486]
[1748441354184,1.88727,2648.1,2647.4,0.7551]
[1748441354375,3.2078,2647.5,2647.3,0.75511]
[1748441354578,1.3347,2647.4,2646.8,2.80630178]
[1748441354786,3.2078,2647.2,2646.8,0.75526]
[1748441355081,2.08989,2647.1,2646.9,0.75523]
[1748441355380,3.2078,2647.2,2646.7,1.89391301]
[1748441355578,3.2078,2647.2,2647.1,0.75519]
[1748441357289,0.00567301,2647.3,2647.2,0.75516]
[1748441357787,3.2078,2647.9,2647.8,0.75499]
[1748441357980,0.75505,2647.6,2647.1,1.62660178]
[1748441358180,3.2078,2647.6,2647.5,0.75507]
[1748441358883,3.2078,2647.6,2647.4,0.75507]
[1748441359080,3.2078,2647.6,2647.5,0.75507]
[1748441360086,0.75507,2647.5,2647.1,24.241]
[1748441360286,3.2078,2647.3,2647.2,0.75516]
[1748441364384,3.2078,2647.7,2647.4,1.88775]
[1748441364590,3.2078,2647.7,2647.6,0.75505]
[1748441367589,3.2078,2647.7,2647.3,1.31052333]
[1748441367788,0.75513,2647.3,2647.0,1.31052333]
[1748441367990,3.2078,2647.1,2647.0,0.75522]
[1748441368489,3.2078,2647.1,2646.9,1.62660178]
[1748441368689,3.2078,2647.1,2647.0,0.75522]
[1748441369387,3.2078,2647.1,2646.9,0.75523]
[1748441369587,3.2078,2647.1,2647.0,0.75522]
[1748441370084,3.2078,2647.1,2646.9,2.06574333]
[1748441370383,3.2078,2647.1,2646.9,1.31052333]
[1748441370384,3.96301,2647.1,2646.9,1.31052333]
[1748441370585,0.75522,2647.0,2646.9,1.31052333]
[1748441370786,0.75545,2646.3,2646.1,0.75547]
[1748441370985,16.91278,2647.1,2646.0,1.62660178]
[1748441370986,0.75548,2646.1,2646.0,1.62660178]
[1748441371181,3.2078,2646.2,2646.0,1.62660178]
[1748441371385,1.82328,2646.1,2646.0,1.62660178]
[1748441371786,47.62328,2646.1,2646.0,1.62660178]
[1748441372288,52.55228,2646.1,2646.0,1.62660178]
[1748441372593,51.7968,2646.1,2645.1,1.2975]
[1748441372792,3.2078,2645.3,2645.0,1.88944]
[1748441372989,3.2078,2645.3,2645.2,0.75573]
[1748441375487,3.2078,2645.3,2645.0,0.00567301]
[1748441375696,0.75576,2645.1,2645.0,0.00567301]
[1748441375996,1.88946,2645.1,2644.2,1.3415]
[1748441376294,3.2078,2644.6,2644.2,3.23152]
[1748441376493,3.2078,2644.6,2644.5,0.75593]
[1748441377594,3.2078,2644.6,2644.5,2.08283]